bitfinex/quotes_SOLUSD_20241118
["timestamp","ask_amount","ask_price","bid_price","bid_amount"]
[1731931150727,12.27726206,242.37,242.31,0.12549]
[1731931150916,12.27726206,242.33,242.31,0.12549]
[1731931152020,12.27726206,242.35,242.31,0.12549]
[1731931152826,25.06206206,242.35,242.26,0.21916462]
[1731931153003,25.06206206,242.35,242.28,0.09367462]
[1731931153211,25.06206206,242.35,242.26,0.12549]
[1731931153212,12.27726206,242.33,242.26,0.12549]
[1731931153509,12.7848,242.35,242.26,0.21916462]
[1731931153711,12.7848,242.35,242.27,0.21916462]
[1731931153942,25.06206206,242.35,242.27,12.40275206]
[1731931154222,25.06206206,242.35,242.21,32.0119]
[1731931154223,12.27726206,242.31,242.24,20.0]
[1731931156333,12.27726206,242.31,242.25,0.12549]
[1731931157024,4.1266,242.33,242.26,0.09367462]
[1731931157025,12.27726206,242.33,242.26,0.09367462]
[1731931157204,12.7848,242.35,242.26,0.09367462]
[1731931157205,25.06206206,242.35,242.28,0.12549]
[1731931157400,12.7848,242.35,242.28,0.21916462]
[1731931157834,12.7848,242.35,242.29,12.37093668]
[1731931158128,12.7848,242.35,242.28,20.21916462]
[1731931158129,25.06206206,242.35,242.3,0.12549]
[1731931160127,25.06206206,242.35,242.26,20.0]
[1731931160315,12.27726206,242.31,242.24,20.0]
[1731931160512,12.27726206,242.31,242.23,0.09367462]
[1731931160929,12.27726206,242.31,242.23,12.37093668]
[1731931161229,12.27726206,242.31,242.24,20.0]
[1731931161614,12.27726206,242.31,242.25,0.12549]
[1731931162533,12.27726206,242.33,242.26,0.09367462]
[1731931162712,25.06206206,242.35,242.26,0.09367462]
[1731931164310,12.27726206,242.33,242.26,0.09367462]
[1731931164716,12.27726206,242.31,242.25,0.12549]
[1731931164916,12.27726206,242.29,242.25,0.12549]
[1731931165118,0.1,242.39,242.26,0.21916462]
[1731931165337,12.27726206,242.36,242.28,0.12549]
[1731931166017,12.27726206,242.34,242.28,0.12549]
[1731931166318,12.27726206,242.34,242.27,0.12549]
[1731931167830,12.27726206,242.29,242.24,0.12549]
[1731931168034,12.27726206,242.29,242.23,0.12549]
[1731931168233,24.89636206,242.33,242.26,20.21916462]
[1731931168533,12.6191,242.33,242.26,20.21916462]
[1731931170219,12.6191,242.33,242.28,20.12549]
[1731931171452,12.27726206,242.35,242.28,20.12549]
[1731931173822,24.39976206,242.39,242.31,0.09367462]
[1731931174133,12.1225,242.39,242.32,0.12549]
[1731931174535,24.39976206,242.39,242.32,0.12549]
[1731931175342,24.39976206,242.39,242.31,0.21916462]
[1731931176218,12.27726206,242.39,242.31,12.49642668]
[1731931176737,12.27726206,242.39,242.3,20.34465462]
[1731931177237,12.27726206,242.35,242.3,20.0]
[1731931177434,12.27726206,242.35,242.27,20.0]
[1731931177939,12.27726206,242.35,242.28,0.09367462]
[1731931178244,7.85632395,242.35,242.28,0.09367462]
[1731931178436,7.85632395,242.35,242.28,0.21916462]
[1731931179025,7.85632395,242.39,242.3,8.07548857]
[1731931179239,7.85632395,242.39,242.32,0.21916462]
[1731931179717,7.85632395,242.39,242.31,0.34465462]
[1731931180844,5.61485893,242.43,242.31,0.34465462]
[1731931181022,7.85632395,242.39,242.31,0.34465462]
[1731931181641,12.84177495,242.5,242.31,0.34465462]
[1731931181642,6.37088747,242.51,242.36,20.25098]
[1731931181943,7.85632395,242.51,242.41,20.34465462]
[1731931182143,7.85632395,242.51,242.42,7.85632395]
[1731931182315,7.85632395,242.51,242.44,0.09367462]
[1731931184251,25.43818146,242.52,242.44,0.09367462]
[1731931184824,12.25808146,242.52,242.45,12.25808146]
[1731931185138,14.50841557,242.64,242.5,0.09367462]
[1731931185139,25.51208146,242.58,242.5,0.09367462]
[1731931185344,25.51208146,242.58,242.5,0.21916462]
[1731931185846,12.25808146,242.6,242.52,0.12549]
[1731931186018,12.25808146,242.6,242.53,0.09367462]
[1731931186218,22.54160423,242.65,242.56,0.12549]
[1731931186219,25.51208146,242.65,242.56,0.12549]
[1731931186474,12.25808146,242.63,242.56,0.12549]
[1731931186822,12.25808146,242.63,242.55,12.47724608]
[1731931187054,12.25808146,242.63,242.57,0.09367462]
[1731931187358,12.25808146,242.63,242.57,0.21916462]
[1731931187724,25.51208146,242.65,242.57,0.21916462]
[1731931188325,13.254,242.65,242.59,12.25808146]
[1731931189725,44.28148146,242.67,242.6,0.12549]
[1731931189726,12.25808146,242.67,242.6,0.12549]
[1731931189927,24.30988146,242.71,242.63,12.25808146]
[1731931191147,28.43008146,242.71,242.61,0.09367462]
[1731931191442,12.25808146,242.69,242.6,0.12549]
[1731931193431,16.37858146,242.69,242.6,0.12549]
[1731931193944,12.25808146,242.67,242.59,12.25808146]
[1731931196521,12.25808146,242.67,242.6,0.21916462]
[1731931196750,12.25808146,242.69,242.61,12.25808146]
[1731931199051,24.30988146,242.71,242.63,12.25808146]
[1731931199241,12.25808146,242.75,242.67,12.25808146]
[1731931199646,13.1586,242.76,242.69,12.25808146]
[1731931200362,13.1586,242.76,242.7,0.12549]
[1731931200554,16.4645,242.82,242.73,12.25808146]
[1731931200852,28.72258146,242.82,242.73,12.25808146]
[1731931202053,23.776884,242.81,242.73,12.25808146]
[1731931202628,23.776884,242.81,242.7,0.12549]
[1731931202629,12.2844,242.88,242.77,12.25808146]
[1731931202930,4.1177,242.86,242.79,12.25808146]
[1731931203435,4.1177,242.86,242.78,0.12549]
[1731931203635,12.25808146,242.87,242.79,12.25808146]
[1731931203976,23.776884,242.86,242.79,12.25808146]
[1731931205053,12.25808146,242.83,242.75,12.25808146]
[1731931205256,23.776884,242.82,242.75,12.25808146]
[1731931205960,27.895184,242.82,242.71,0.09367462]
[1731931206155,23.776884,242.86,242.79,12.25808146]
[1731931207043,5.44558812,242.91,242.65,33.3223]
[1731931207044,12.3674,242.92,242.83,12.25808146]
[1731931207447,24.62548146,242.92,242.83,12.25808146]
[1731931207643,28.74218146,242.92,242.83,12.25808146]
[1731931207859,16.5841,242.92,242.81,12.25808146]
[1731931208040,12.25808146,242.9,242.81,12.25808146]
[1731931208237,4.1167,242.92,242.86,12.25808146]
[1731931208596,12.25808146,242.95,242.8,0.12549]
[1731931208737,4.2159,242.96,242.79,12.38357146]
[1731931208738,12.25808146,242.88,242.79,12.38357146]
[1731931208940,0.1,242.9,242.79,12.25808146]
[1731931209242,12.25808146,242.89,242.8,0.09367462]
[1731931209562,12.25808146,242.91,242.83,12.25808146]
[1731931209759,4.1169,242.9,242.83,12.25808146]
[1731931211571,23.776884,242.89,242.83,12.25808146]
[1731931211867,23.776884,242.89,242.77,30.1372]
[1731931211868,23.776884,242.86,242.78,12.25808146]
[1731931212074,4.1169,242.9,242.77,30.1372]
[1731931212075,23.776884,242.84,242.77,30.1372]
[1731931212379,12.25808146,242.82,242.77,30.1372]
[1731931212664,23.776884,242.81,242.73,12.25808146]
[1731931212865,23.776884,242.81,242.71,33.1811]
[1731931212866,12.25808146,242.78,242.71,45.43918146]
[1731931213544,27.895684,242.79,242.66,6.0992]
[1731931213545,12.25808146,242.76,242.66,6.0992]
[1731931213748,23.776884,242.75,242.66,18.35728146]
[1731931214054,12.25808146,242.76,242.68,12.25808146]
[1731931214258,12.25808146,242.8,242.72,12.25808146]
[1731931214466,12.25808146,242.8,242.66,6.0992]
[1731931214467,23.776884,242.79,242.7,12.25808146]
[1731931214683,12.25808146,242.76,242.68,12.25808146]
[1731931214965,23.776884,242.75,242.67,0.09367462]
[1731931215139,27.896384,242.75,242.67,0.21916462]
[1731931215346,23.776884,242.73,242.65,31.3904]
[1731931215841,17.2788,242.77,242.67,12.25808146]
[1731931216148,23.776884,242.74,242.67,12.25808146]
[1731931216357,12.25808146,242.73,242.65,12.25808146]
[1731931216670,23.776884,242.72,242.63,12.25808146]
[1731931216970,27.897184,242.7,242.61,12.25808146]
[1731931217544,27.897184,242.7,242.63,12.25808146]
[1731931217946,23.776884,242.7,242.63,12.25808146]
[1731931219568,23.776884,242.7,242.61,12.25808146]
[1731931219569,23.776884,242.68,242.61,12.25808146]
[1731931220065,23.776884,242.67,242.59,44.80158146]
[1731931221045,12.25808146,242.66,242.59,12.25808146]
[1731931221264,23.776884,242.65,242.61,12.25808146]
[1731931221456,70.1,242.74,242.63,12.25808146]
[1731931221457,23.776884,242.72,242.63,12.25808146]
[1731931221665,36.03496546,242.72,242.63,12.25808146]
[1731931221856,23.776884,242.69,242.63,12.25808146]
[1731931222050,23.776884,242.67,242.59,12.25808146]
[1731931222656,12.25808146,242.62,242.53,12.25808146]
[1731931222974,23.776884,242.61,242.53,12.25808146]
[1731931223164,27.898784,242.61,242.53,12.25808146]
[1731931223549,23.776884,242.61,242.53,12.25808146]
[1731931223749,42.25808146,242.64,242.55,12.25808146]
[1731931223996,23.776884,242.63,242.57,12.25808146]
[1731931224178,13.1286,242.65,242.58,0.09367462]
[1731931224472,12.25808146,242.68,242.59,12.25808146]
[1731931225248,16.37878146,242.68,242.6,0.12549]
[1731931225448,23.776884,242.67,242.6,0.12549]
[1731931225870,23.776884,242.67,242.52,12.25808146]
[1731931225871,23.776884,242.67,242.5,0.1]
[1731931226054,23.776884,242.67,242.6,12.25808146]
[1731931226451,23.776884,242.65,242.44,6.1992]
[1731931226664,23.776884,242.63,242.55,20.0]
[1731931227173,12.25808146,242.6,242.55,20.0]
[1731931227368,12.25808146,242.6,242.52,12.25808146]
[1731931227574,23.776884,242.59,242.53,20.0]
[1731931227744,12.25808146,242.58,242.5,12.25808146]
[1731931228168,0.1,242.65,242.5,12.25808146]
[1731931228169,0.1,242.68,242.51,0.09367462]
[1731931228474,12.25808146,242.62,242.55,0.09367462]
[1731931228991,12.25808146,242.62,242.55,0.21916462]
[1731931229283,12.25808146,242.64,242.56,12.25808146]
[1731931229455,4.1208,242.67,242.59,20.12549]
[1731931229645,16.37888146,242.67,242.59,20.12549]
[1731931229847,4.1208,242.67,242.6,12.25808146]
[1731931230077,16.37888146,242.67,242.59,20.12549]
[1731931230257,12.25808146,242.65,242.59,20.12549]
[1731931230466,12.25808146,242.65,242.59,0.12549]
[1731931230665,13.1169,242.71,242.59,0.09367462]
[1731931230850,13.1169,242.71,242.65,12.25808146]
[1731931231054,25.37498146,242.71,242.63,12.25808146]
[1731931231254,25.37498146,242.71,242.64,20.12549]
[1731931231781,12.25808146,242.69,242.64,20.0]
[1731931231956,12.25808146,242.69,242.62,20.0]
[1731931233071,23.776884,242.68,242.62,20.0]
[1731931233464,25.37498146,242.71,242.64,20.0]
[1731931234380,25.37498146,242.71,242.63,12.47724608]
[1731931234381,12.25808146,242.69,242.63,0.12549]
[1731931234591,25.37498146,242.71,242.64,20.0]
[1731931234882,23.776884,242.7,242.64,20.0]
[1731931235288,12.5944,242.76,242.67,12.35175608]
[1731931235501,70.0,242.86,242.66,20.25098]
[1731931235502,12.25808146,242.79,242.72,20.12549]
[1731931235684,12.5944,242.82,242.76,20.0]
[1731931235888,72.14770391,242.89,242.79,12.47724608]
[1731931235889,12.25808146,242.87,242.79,12.47724608]
[1731931236062,25.88322993,242.93,242.86,20.12549]
[1731931236063,7.3904763,242.93,242.86,20.12549]
[1731931236265,12.25808146,242.97,242.9,12.25808146]
[1731931236459,12.25808146,242.99,242.91,20.21916462]
[1731931236894,12.25808146,242.99,242.93,20.12549]
[1731931237188,24.85248146,243.01,242.93,20.12549]
[1731931237362,12.25808146,243.01,242.93,20.12549]
[1731931237562,12.25808146,243.01,242.93,0.12549]
[1731931237964,12.6888,243.08,242.93,0.12549]
[1731931237965,12.25808146,243.06,242.99,0.12549]
[1731931238161,12.6888,243.08,243.0,12.47724608]
[1731931238162,12.25808146,243.08,243.0,12.47724608]
[1731931238386,19.51657199,243.1,243.02,19.61024661]
[1731931238591,19.51657199,243.08,243.01,20.12549]
[1731931240079,19.51657199,243.1,243.03,20.0]
[1731931240286,23.776884,243.09,243.03,20.0]
[1731931241068,23.776884,243.09,243.02,19.51657199]
[1731931241069,19.51657199,243.12,243.06,0.21916462]
[1731931241268,19.51657199,243.14,243.08,0.12549]
[1731931241572,19.51657199,243.16,243.09,20.0]
[1731931242188,4.112,243.19,243.09,20.0]
[1731931242189,19.51657199,243.18,243.09,20.0]
[1731931243477,23.776884,243.17,243.09,20.0]
[1731931243984,19.51657199,243.14,243.08,0.12549]
[1731931244174,19.51657199,243.14,243.06,19.61024661]
[1731931244175,19.51657199,243.12,243.07,0.12549]
[1731931244378,19.51657199,243.12,243.06,0.21916462]
[1731931244584,19.51657199,243.14,243.06,19.73573661]
[1731931244784,23.776884,243.13,243.08,0.21916462]
[1731931244990,19.51657199,243.2,243.12,19.51657199]
[1731931245197,19.51657199,243.18,243.08,0.12549]
[1731931245372,19.51657199,243.16,243.1,20.12549]
[1731931245880,19.51657199,243.18,243.11,19.51657199]
[1731931246273,19.51657199,243.16,243.1,20.12549]
[1731931246868,23.776884,243.15,243.08,20.21916462]
[1731931247072,23.776884,243.15,243.1,20.0]
[1731931247500,23.776884,243.17,243.1,20.0]
[1731931247877,19.51657199,243.16,243.1,20.0]
[1731931248193,23.776884,243.15,243.1,20.0]
[1731931248371,23.776884,243.15,243.1,0.12549]
[1731931249023,19.51657199,243.16,243.1,0.12549]
[1731931249177,19.51657199,243.16,243.1,20.12549]
[1731931249883,19.51657199,243.15,243.1,0.12549]
[1731931250783,23.776884,243.14,243.09,20.0]
[1731931251296,19.51657199,243.12,243.07,20.0]
[1731931251500,23.776884,243.14,243.01,20.0]
[1731931251501,19.51657199,243.1,243.01,20.0]
[1731931251799,23.776884,243.09,243.01,20.0]
[1731931252106,19.51657199,243.08,243.01,20.0]
[1731931252405,19.51657199,243.08,243.0,19.51657199]
[1731931252598,19.51657199,243.08,243.01,0.09367462]
[1731931253110,19.51657199,243.08,243.01,0.21916462]
[1731931253617,19.51657199,243.08,243.01,20.21916462]
[1731931253906,23.776884,243.09,243.03,20.12549]
[1731931255732,19.51657199,243.16,243.08,19.51657199]
[1731931256016,19.51657199,243.17,243.09,19.51657199]
[1731931256187,19.51657199,243.15,243.08,19.51657199]
[1731931256384,19.51657199,243.15,243.05,0.12549]
[1731931256385,19.51657199,243.12,243.05,0.21916462]
[1731931256592,19.51657199,243.1,243.04,20.0]
[1731931256805,19.51657199,243.11,243.04,20.0]
[1731931257004,19.51657199,243.11,243.05,0.21916462]
[1731931257189,23.776884,243.12,243.06,20.0]
[1731931257603,19.51657199,243.13,243.07,0.12549]
[1731931257792,23.776884,243.13,243.08,20.0]
[1731931257996,23.776884,243.14,243.08,20.0]
[1731931258195,43.29345599,243.14,243.08,20.0]
[1731931258913,23.776884,243.14,243.08,20.0]
[1731931259324,23.776884,243.14,243.09,20.0]
[1731931259492,19.51657199,243.15,243.09,20.0]
[1731931259698,19.51657199,243.18,243.11,39.61024661]
[1731931260016,19.51657199,243.2,243.13,19.51657199]
[1731931260196,19.51657199,243.2,243.14,20.0]
[1731931260395,19.51657199,243.2,243.15,0.12549]
[1731931261190,4.1107,243.27,243.17,19.51657199]
[1731931261393,4.1107,243.27,243.16,0.21916462]
[1731931261394,12.0396,243.35,243.27,0.09367462]
[1731931261610,32.3069,243.41,243.31,20.09367462]
[1731931261611,2.14300258,243.38,243.31,20.09367462]
[1731931261814,48.4548,243.41,243.31,20.09367462]
[1731931261815,19.51657199,243.39,243.32,19.51657199]
[1731931262018,4.1072,243.47,243.35,19.51657199]
[1731931262211,19.51657199,243.42,243.36,0.21916462]
[1731931262515,19.51657199,243.4,243.33,19.51657199]
[1731931262810,19.51657199,243.42,243.34,20.12549]
[1731931263217,19.51657199,243.42,243.34,20.0]
[1731931263405,19.51657199,243.42,243.35,19.51657199]
[1731931264221,4.1071,243.48,243.38,0.21916462]
[1731931264425,19.51657199,243.46,243.4,0.12549]
[1731931264722,12.4163,243.49,243.4,0.12549]
[1731931264723,19.51657199,243.44,243.4,0.12549]
[1731931264909,19.51657199,243.44,243.29,0.22549]
[1731931265112,19.51657199,243.42,243.36,20.12549]
[1731931265316,19.51657199,243.44,243.37,0.09367462]
[1731931265900,19.51657199,243.44,243.39,0.09367462]
[1731931266307,19.51657199,243.46,243.39,19.61024661]
[1731931266513,12.6615,243.57,243.42,0.12549]
[1731931266514,19.51657199,243.48,243.42,0.12549]
[1731931266730,19.51657199,243.46,243.39,19.51657199]
[1731931267021,19.51657199,243.46,242.98,25.27741555]
[1731931267022,19.51657199,243.44,243.35,19.51657199]
[1731931267316,19.51657199,243.44,243.28,0.22549]
[1731931267317,19.51657199,243.48,243.42,0.21916462]
[1731931267530,19.51657199,243.48,243.43,0.12549]
[1731931267701,19.51657199,243.46,243.41,0.12549]
[1731931268412,19.51657199,243.48,243.39,20.12549]
[1731931268607,19.51657199,243.48,243.4,0.09367462]
[1731931269013,19.51657199,243.44,243.36,19.51657199]
[1731931269315,19.51657199,243.44,243.31,0.1]
[1731931269514,84.3713,243.54,243.37,20.12549]
[1731931269515,23.776884,243.45,243.37,20.12549]
[1731931269706,23.776884,243.45,243.4,0.09367462]
[1731931270911,23.776884,243.45,243.4,0.21916462]
[1731931271323,0.08972268,243.41,243.4,0.21916462]
[1731931271513,0.08972268,243.41,243.4,19.73573661]
[1731931272521,0.08972268,243.41,243.4,39.73573661]
[1731931273839,0.08972268,243.41,243.4,19.73573661]
[1731931275222,19.60629467,243.41,243.33,19.51657199]
[1731931275423,43.29345599,243.4,243.33,19.51657199]
[1731931275610,0.08972268,243.41,243.31,19.51657199]
[1731931275611,43.29345599,243.39,243.31,19.51657199]
[1731931275818,19.51657199,243.35,243.26,19.51657199]
[1731931276013,23.776884,243.39,243.18,6.1992]
[1731931276014,19.51657199,243.33,243.25,19.51657199]
[1731931276223,19.51657199,243.33,243.26,19.51657199]
[1731931276417,23.776884,243.35,243.28,19.51657199]
[1731931276625,23.776884,243.35,243.3,19.51657199]
[1731931276825,23.776884,243.37,243.31,19.51657199]
[1731931277027,23.776884,243.37,243.24,19.51657199]
[1731931277028,19.51657199,243.39,243.32,19.51657199]
[1731931277231,23.776884,243.38,243.32,19.51657199]
[1731931277428,23.776884,243.38,243.31,0.21916462]
[1731931277815,19.51657199,243.35,243.28,19.51657199]
[1731931278030,19.51657199,243.35,243.14,0.1]
[1731931278031,19.51657199,243.33,243.26,19.51657199]
[1731931278416,19.51657199,243.3,243.22,19.51657199]
[1731931278628,19.51657199,243.32,243.23,19.51657199]
[1731931278821,19.51657199,243.32,243.24,0.09367462]
[1731931279042,23.776884,243.34,243.25,19.51657199]
[1731931279221,43.29345599,243.34,243.25,19.51657199]
[1731931279635,19.51657199,243.3,243.23,19.51657199]
[1731931279822,19.51657199,243.3,243.21,19.51657199]
[1731931280017,19.51657199,243.3,243.22,0.09367462]
[1731931280428,23.776884,243.29,243.21,19.51657199]
[1731931280739,19.51657199,243.24,243.06,0.2]
[1731931280944,23.776884,243.23,243.15,19.51657199]
[1731931281145,19.51657199,243.2,243.11,19.51657199]
[1731931281458,4.1116,243.21,243.1,0.09367462]
[1731931281459,19.51657199,243.18,243.1,0.09367462]
[1731931282015,19.51657199,243.18,243.09,19.51657199]
[1731931282216,23.776884,243.17,243.09,19.51657199]
[1731931282946,23.776884,243.17,243.01,5.41847473]
[1731931282947,23.776884,243.15,243.07,19.51657199]
[1731931283119,19.51657199,243.14,243.07,19.51657199]
[1731931284319,23.776884,243.17,243.07,19.51657199]
[1731931284320,19.51657199,243.16,243.07,19.51657199]
[1731931284519,19.51657199,243.16,243.0,19.51657199]
[1731931284520,23.776884,243.15,243.09,19.51657199]
[1731931284726,23.776884,243.17,243.11,19.51657199]
[1731931284941,23.776884,243.18,243.11,19.51657199]
[1731931285128,23.776884,243.18,243.02,0.09367462]
[1731931285129,19.51657199,243.17,243.09,19.51657199]
[1731931285335,23.776884,243.16,243.09,19.51657199]
[1731931286245,23.776884,243.18,243.11,19.51657199]
[1731931286838,13.1344,243.27,243.17,19.51657199]
[1731931287031,19.51657199,243.26,243.18,0.09367462]
[1731931287557,19.51657199,243.24,243.18,0.09367462]
[1731931288041,19.51657199,243.24,243.17,19.51657199]
[1731931288231,19.51657199,243.24,243.15,19.51657199]
[1731931288426,19.51657199,243.24,243.16,0.09367462]
[1731931288732,19.51657199,243.24,243.17,19.51657199]
[1731931288932,19.51657199,243.24,243.18,0.09367462]
[1731931289123,19.51657199,243.24,243.15,19.51657199]
[1731931289325,19.51657199,243.22,243.13,19.51657199]
[1731931289543,19.51657199,243.22,243.14,0.09367462]
[1731931289845,17.2451,243.27,243.15,19.51657199]
[1731931289846,19.51657199,243.24,243.15,19.51657199]
[1731931290029,17.2451,243.27,243.18,0.09367462]
[1731931290030,19.51657199,243.26,243.18,0.09367462]
[1731931290228,19.51657199,243.24,243.15,19.51657199]
[1731931290746,19.51657199,243.26,243.18,0.09367462]
[1731931290941,13.1344,243.27,243.22,0.09367462]
[1731931291471,0.07678249,243.23,243.17,19.51657199]
[1731931291748,0.07678249,243.23,243.18,0.09367462]
[1731931291937,0.07678249,243.23,243.2,0.21916462]
[1731931292248,0.07678249,243.23,243.22,20.21916462]
[1731931294958,0.07678249,243.23,243.22,20.0]
[1731931295131,0.07678249,243.23,243.22,20.09367462]
[1731931295327,0.07678249,243.23,243.22,0.09367462]
[1731931295553,0.07678249,243.23,243.19,19.51657199]
[1731931295752,0.07678249,243.23,243.17,19.51657199]
[1731931296550,0.07678249,243.23,243.2,0.09367462]
[1731931296981,0.07678249,243.23,243.22,0.09367462]
[1731931297252,0.07678249,243.23,243.22,0.21916462]
[1731931297751,0.07678249,243.23,243.22,20.21916462]
[1731931298059,0.07678249,243.23,243.22,20.34465462]
[1731931299125,0.07678249,243.23,243.22,39.86122661]
[1731931299347,0.07678249,243.23,243.22,63.63811061]
[1731931299733,12.8411,243.46,243.32,0.09367462]
[1731931300035,12.8411,243.46,243.4,0.09367462]
[1731931300257,19.51657199,243.47,243.4,20.09367462]
[1731931300426,12.8411,243.55,243.33,0.22549]
[1731931300427,19.51657199,243.5,243.43,19.51657199]
[1731931300763,19.51657199,243.5,243.44,0.09367462]
[1731931301454,19.51657199,243.5,243.43,0.09367462]
[1731931301647,19.51657199,243.46,243.38,20.0]
[1731931302153,19.51657199,243.46,243.39,0.21916462]
[1731931302352,4.1061,243.54,243.41,0.09367462]
[1731931302557,19.51657199,243.5,243.41,19.73573661]
[1731931303058,19.51657199,243.48,243.41,19.73573661]
[1731931303264,19.51657199,243.48,243.4,20.21916462]
[1731931303729,19.51657199,243.48,243.42,0.21916462]
[1731931303938,19.51657199,243.5,243.42,0.21916462]
[1731931304428,19.51657199,243.5,243.42,20.21916462]
[1731931305153,19.51657199,243.54,243.47,0.09367462]
[1731931305552,19.51657199,243.57,243.49,20.21916462]
[1731931306470,19.51657199,243.61,243.53,20.0]
[1731931307241,19.51657199,243.59,243.53,20.0]
[1731931307543,19.51657199,243.55,243.44,19.51657199]
[1731931307746,19.51657199,243.52,243.44,19.51657199]
[1731931308270,19.51657199,243.6,243.42,19.51657199]
[1731931308271,23.776884,243.49,243.42,19.51657199]
[1731931308445,23.776884,243.49,243.35,31.1153]
[1731931308446,23.776884,243.49,243.4,19.51657199]
[1731931308645,23.776884,243.49,243.41,0.09367462]
[1731931308948,23.776884,243.49,243.31,5.54945732]
[1731931308949,19.51657199,243.44,243.36,19.51657199]
[1731931309155,19.51657199,243.46,243.38,19.51657199]
[1731931309457,23.776884,243.47,243.38,19.51657199]
[1731931309635,12.1326,243.48,243.42,19.51657199]
[1731931311372,0.08782705,243.43,243.24,12.75954527]
[1731931311539,19.51657199,243.42,243.34,19.51657199]
[1731931311739,23.86471105,243.43,243.35,0.09367462]
[1731931311950,23.86471105,243.43,243.36,19.51657199]
[1731931312164,0.08782705,243.43,243.39,19.51657199]
[1731931312369,0.08782705,243.43,243.4,0.09367462]
[1731931313259,0.08782705,243.43,243.4,20.09367462]
[1731931313838,0.08782705,243.43,243.41,19.51657199]
[1731931315140,0.08782705,243.43,243.42,20.21916462]
[1731931316847,0.06782706,243.45,243.42,20.31916462]
[1731931317062,0.01214474,243.5,243.46,0.44465462]
[1731931317252,0.01214474,243.5,243.49,39.86122661]
[1731931318063,4.1038,243.68,243.51,44.12153862]
[1731931318064,19.51657199,243.68,243.51,44.12153862]
[1731931318257,19.51657199,243.68,243.51,63.63811061]
[1731931318759,2.24030883,243.76,243.51,63.63811061]
[1731931318760,19.51657199,243.66,243.51,63.63811061]
[1731931318966,19.51657199,243.68,243.51,63.63811061]
[1731931319569,32.25847199,243.64,243.51,39.64206199]
[1731931319955,12.7419,243.72,243.55,0.21916462]
[1731931320154,12.7419,243.72,243.65,19.51657199]
[1731931320562,12.7419,243.72,243.67,19.51657199]
[1731931321885,12.7419,243.72,243.65,19.51657199]
[1731931322174,19.51657199,243.7,243.52,43.776884]
[1731931322363,19.51657199,243.64,243.56,19.51657199]
[1731931322552,19.51657199,243.66,243.56,19.51657199]
[1731931322870,19.51657199,243.66,243.57,0.09367462]
[1731931323070,19.51657199,243.62,243.53,19.51657199]
[1731931323380,19.51657199,243.58,243.51,19.51657199]
[1731931323555,19.51657199,243.58,243.47,19.51657199]
[1731931323556,19.51657199,243.56,243.47,19.51657199]
[1731931323761,19.51657199,243.56,243.49,19.51657199]
[1731931323965,31.96207199,243.58,243.5,0.09367462]
[1731931324478,19.51657199,243.56,243.49,19.51657199]
[1731931324645,19.51657199,243.56,243.47,19.51657199]
[1731931325574,19.51657199,243.52,243.43,19.51657199]
[1731931325764,19.51657199,243.48,243.39,19.51657199]
[1731931325972,70.0,243.52,243.21,38.27863582]
[1731931325973,19.51657199,243.44,243.35,19.51657199]
[1731931326168,19.51657199,243.44,243.37,19.51657199]
[1731931326372,19.51657199,243.46,243.38,0.09367462]
[1731931326552,19.51657199,243.46,243.37,19.51657199]
[1731931326752,19.51657199,243.44,243.35,19.51657199]
[1731931327049,19.51657199,243.44,243.36,0.09367462]
[1731931327372,19.51657199,243.44,243.36,20.0]
[1731931327790,19.51657199,243.44,243.35,19.51657199]
[1731931327947,19.51657199,243.42,243.35,19.51657199]
[1731931328287,19.51657199,243.42,243.33,19.51657199]
[1731931328469,23.776884,243.43,243.32,19.51657199]
[1731931328652,23.776884,243.43,243.24,19.51657199]
[1731931328653,16.5706,243.47,243.38,19.51657199]
[1731931328847,12.4633,243.47,243.4,19.51657199]
[1731931329117,31.97987199,243.47,243.38,19.51657199]
[1731931329265,19.51657199,243.45,243.38,19.51657199]
[1731931329452,16.5707,243.47,243.38,19.51657199]
[1731931329453,31.97987199,243.47,243.38,19.51657199]
[1731931330055,36.08717199,243.47,243.38,19.51657199]
[1731931330455,31.97987199,243.47,243.38,19.51657199]
[1731931330846,31.97987199,243.47,243.24,19.61657199]
[1731931330847,19.51657199,243.45,243.36,19.51657199]
[1731931331357,82.4633,243.47,243.36,19.51657199]
[1731931331565,19.51657199,243.42,243.32,19.51657199]
[1731931331766,23.776884,243.43,243.3,19.51657199]
[1731931331767,19.51657199,243.4,243.3,19.51657199]
[1731931332162,19.51657199,243.4,243.32,19.51657199]
[1731931334474,19.51657199,243.38,243.3,19.51657199]
[1731931334775,19.51657199,243.35,243.27,20.0]